Cogmind - Beta 14 @@@ ROGUE MODE // 2024.08.10 @ 15:39:41 Player: Rosa Result: Self-destructed Performance ------------- Evolutions (1) 500 Regions Visited (2) 400 Robots Destroyed (16) 80 Value Destroyed (305) 305 Prototype IDs (0) 0 Alien Tech Used (0) 0 Bonus (0) 0 TOTAL SCORE: 1285 Bonus ------- None Cogmind --------- Core Integrity 372/400 Matter 185/300 Energy 99/100 System Corruption 0% Temperature Cool (6) Movement Treading (160) Location -9/Materials Parts ------- > --- POWER (1) -------- (None) > --- PROPULSION (2) --- Light Treads (fused) Light Treads > --- UTILITY (2) ------ Large Storage Unit Power Shielding > --- WEAPON (4) ------- EM Pulse Gun > --- INVENTORY (15) --- Aluminum Leg Huge Storage Unit Peak State ------------ > --- POWER ------------ Light Ion Engine > --- PROPULSION ------- Wheel Compact Wheel > --- UTILITY ---------- Small Storage Unit Power Shielding > --- WEAPON ----------- Assault Rifle Assault Rifle > --- INVENTORY -------- Ion Engine Light Treads Light Treads Aluminum Leg Aluminum Leg EM Pulse Gun [Rating: 7] Favorites ----------- Power Ion Engine Engine Ion Engine Propulsion Light Treads Treads Light Treads Wheel Wheel Utility Power Shielding Storage Large Storage Unit Protection Power Shielding Weapon EM Pulse Gun Energy Gun EM Pulse Gun Ballistic Gun Assault Rifle Launcher Grenade Launcher Build | -11 -10 -9 ------- Run | Yrd Mat Mat Slots Evolved 2 | . . 2 Power . | . . . Propulsion . | . . . Utility . | . . . Weapon 2 | . . 2 Parts Attached 26 | 7 18 1 Power 4 | 1 3 . Engine 4 | 1 3 . Core . | . . . Reactor . | . . . Propulsion 7 | 2 5 . Treads 5 | . 5 . Leg . | . . . Wheel 2 | 2 . . Hover . | . . . Flight . | . . . Utility 7 | 1 6 . Device . | . . . Storage 5 | 1 4 . Processor . | . . . Hackware . | . . . Protection 2 | . 2 . Artifact . | . . . Weapon 8 | 3 4 1 Energy Gun 4 | 1 2 1 Energy Cannon . | . . . Ballistic Gun 2 | 2 . . Ballistic Cannon . | . . . Launcher 2 | . 2 . Special Weapon . | . . . Impact Weapon . | . . . Slashing Weapon . | . . . Piercing Weapon . | . . . Special Melee Weapon . | . . . Unidentified Prototypes . | . . . Parts Lost 7 | . 5 2 Power 1 | . 1 . Propulsion 2 | . 2 . Utility . | . . . Weapon 4 | . 2 2 Highest Loss Streak 5 | . 5 1 To Critical Strikes . | . . . Average Slot Usage (%) 90 | . 92 68 Engine 10 | . 11 . Treads 21 | . 21 22 Wheel 4 | . 4 . Storage 13 | . 14 11 Protection 13 | . 13 11 Energy Gun 10 | . 10 13 Ballistic Gun 4 | . 5 . Launcher 9 | . 9 11 Peak Build Rating 7 | 6 7 7 Average Rating 6 | 4 6 6 On Entrance 4 | . 6 6 Naked Turns . | . . . Heaviest Build 91 | 12 91 28 Greatest Support 40 | 26 40 40 Greatest Overweight (x) 4 | . 4 . Average Overweight (x) . | . . . Largest Inventory Capacity 25 | 8 25 15 Average Capacity 17 | 7 18 15 Most Carried 9 | 6 9 2 Average Carried 4 | 2 4 2 Final Capacity 15 | 8 15 15 Final Carried 6 | 6 2 2 Class Distribution -------------------- 100% | Mutant Dominant Class ---------------- Mutant | -10/Materials Mutant | -9/Materials Resources | -11 -10 -9 ----------- Run | Yrd Mat Mat Matter Collected 539 | 255 284 . Remotely . | . . . Salvage Created 388 | . 309 79 Parts 31 | . 25 6 Haulers Intercepted . | . . . Recyclers Shooed . | . . . Parts Field Recycled . | . . . Retrieved Matter . | . . . Parts Self-Destructed . | . . . Prevented . | . . . Kills | -11 -10 -9 ------- Run | Yrd Mat Mat Combat Hostiles Destroyed 8 | . 7 1 Guns 5 | . 4 1 AOE 3 | . 3 . Classes Destroyed 6 | . 4 2 Worker 4 | . 4 . Builder 2 | . . 2 Watcher 2 | . 2 . Swarmer 1 | . 1 . Grunt 6 | . 6 . Sentry 1 | . . 1 Best Kill Streak 10 | . 10 3 Combat Bots Only 7 | . 7 1 Max Kills in Single Turn 2 | . 2 1 Gunslinging . | . . . Exploded 1 | . 1 . Melee . | . . . Uniques/NPCs Destroyed . | . . . Combat | -11 -10 -9 -------- Run | Yrd Mat Mat Hostile Shots Fired 90 | . 67 23 Missed 24 | . 15 9 Damage Taken 793 | . 595 198 Core 141 | . 113 28 Absorbed by Shields . | . . . Redirected to Shielding 21 | . 21 . Core Remaining (%) 77 | 100 54 . Volleys Fired 43 | . 35 8 Largest 3 | . 2 3 Hottest 110 | . 70 110 Shots Fired 80 | . 62 18 Gun 66 | . 53 13 Cannon . | . . . Launcher 14 | . 9 5 Special . | . . . Kinetic 42 | . 42 . Thermal . | . . . Explosive 14 | . 9 5 Electromagnetic 24 | . 11 13 Robot Hit Streak 17 | . 17 4 Robot Miss Streak 5 | . 5 1 Penetration Max . | . . . Secondary Targets 1 | . 1 . Max Gunslinging Chain 1 | . 1 . Shots Hit Robots 41 | . 36 5 Core Hits 24 | . 18 6 Critical Kills . | . . . Critical Parts Destroyed . | . . . Critical Strikes . | . . . Melee Attacks . | . . . Impact . | . . . Slashing . | . . . Piercing . | . . . Sneak Attacks . | . . . Combat Hostiles . | . . . Follow-up Attacks . | . . . Damage Inflicted 1044 | . 851 193 Guns 535 | . 446 89 Cannons . | . . . Explosions 507 | . 403 104 Melee . | . . . Ramming 2 | . 2 . Kinetic 380 | . 380 . Thermal 62 | . 62 . Explosive 445 | . 341 104 Electromagnetic 155 | . 66 89 Impact . | . . . Slashing . | . . . Piercing . | . . . Highest Corruption 2 | . 2 . Average Corruption 2 | . 2 . Corruption Purged . | . . . Corruption Blocked . | . . . Effects 2 | . 2 . Parts Fused 1 | . 1 . Data Loss (minor) 1 | . 1 . Overload Shots . | . . . Overflow Damage 52 | . 52 . Projectiles . | . . . Explosions 52 | . 52 . Melee . | . . . Knockbacks . | . . . Impact . | . . . Kinetic . | . . . Secondary . | . . . Self-Inflicted Damage 26 | . 26 . Shots 1 | . 1 . Rammed 1 | . 1 . Targets Rammed 1 | . 1 . Kicked . | . . . Crushed . | . . . Highest Temperature 36 | . 36 25 Average Temperature 11 | . 12 9 Received Heat Transfer 372 | . 306 66 Siege Activations . | . . . Robots Corrupted . | . . . Combat Hostiles . | . . . Parts Fried . | . . . Impact Corruptions . | . . . Robots Melted . | . . . Combat Hostiles . | . . . Parts Melted 1 | . 1 . Heat Transferred 100 | . 100 . Parts Sabotaged . | . . . Parts Stolen . | . . . Parts Stripped . | . . . Power Chain Reactions 1 | . 1 . Alert | -11 -10 -9 ------- Run | Yrd Mat Mat Peak Influence 224 | . 224 48 Initial 10 | . . 10 Average 74 | . 87 26 Maximum Alert Level 1 | . 1 . Low Security (%) 74 | 100 69 100 Level 1 25 | . 30 . Level 2 . | . . . Level 3 . | . . . Level 4 . | . . . Level 5 . | . . . High Security . | . . . Max Security . | . . . Squads Dispatched 3 | . 3 . Investigation 1 | . 1 . Extermination . | . . . Reinforcement 2 | . 2 . Assault . | . . . Garrison . | . . . Intercept . | . . . Searches Triggered . | . . . Construction Impeded . | . . . Haulers Reinforced . | . . . Active Scanning Responses . | . . . Cargo Convoy Interrupts . | . . . Stealth | -11 -10 -9 --------- Run | Yrd Mat Mat Distress Signals 6 | . 4 2 Communications Jammed . | . . . Distress Signals . | . . . Times Spotted 22 | . 11 11 Peak Tracking Total 6 | . 4 6 Tactical Retreats . | . . . Traps | -11 -10 -9 ------- Run | Yrd Mat Mat Traps Triggered 4 | . 4 . Indirectly . | . . . Trap Hack Attempts . | . . . Triggered . | . . . Disarmed . | . . . Reprogrammed . | . . . Reused . | . . . Traps Extracted . | . . . Installed . | . . . Triggered . | . . . Machines | -11 -10 -9 ---------- Run | Yrd Mat Mat Machines Disabled . | . . . Max in Single Turn . | . . . Machines Repaired . | . . . Machines Dismantled . | . . . Machines Sabotaged . | . . . Overloaded Fab Kills . | . . . Hacking | -11 -10 -9 --------- Run | Yrd Mat Mat Machines Accessed 2 | . 2 . Terminals 1 | . 1 . Fabricators . | . . . Repair Stations . | . . . Recycling Units 1 | . 1 . Scanalyzers . | . . . Garrison Access . | . . . Total Hacks 11 | . 11 . Successful 10 | . 10 . Failed 1 | . 1 . Catastrophic . | . . . Database Lockouts . | . . . Manual . | . . . Terminals 4 | . 4 . Fabricators . | . . . Repair Stations . | . . . Recycling Units 7 | . 7 . Scanalyzers . | . . . Garrison Access . | . . . Terminal Hacks 3 | . 3 . Record 3 | . 3 . Fabricator Hacks . | . . . Repair Station Hacks . | . . . Recycling Unit Hacks 7 | . 7 . Recycle Component 5 | . 5 . Process 1 | . 1 . Retrieve Matter 1 | . 1 . Scanalyzer . | . . . Garrison Access Hacks . | . . . Unauthorized Hacks . | . . . Terminals . | . . . Fabricators . | . . . Repair Stations . | . . . Recycling Units . | . . . Scanalyzers . | . . . Garrison Access . | . . . Data Cores Recovered . | . . . Used . | . . . Hacking Detections 2 | . 2 . Full Trace Events 1 | . 1 . Feedback Events . | . . . Feedback Blocked . | . . . Robot Schematics Acquired . | . . . Robots Built . | . . . Authchips . | . . . Time . | . . . Total Robot Build Rating . | . . . Part Schematics Acquired . | . . . Parts Built . | . . . Authchips . | . . . Time . | . . . Total Part Build Rating . | . . . Parts Repaired . | . . . Time . | . . . Parts Recycled 5 | . 5 . Recycled Matter 361 | . 361 . Retrieved Matter 376 | . 376 . Retrieved Components . | . . . Parts Scanalyzed . | . . . Part Schematics Acquired . | . . . Parts Damaged . | . . . Bothacking | -11 -10 -9 ------------ Run | Yrd Mat Mat Used RIF Installer . | . . . Robots Hacked . | . . . Non-combat . | . . . Combat . | . . . Robot Hacks Applied . | . . . Relay Couplers Released . | . . . Fabnet Peak Effective % . | . . . Robots Rewired . | . . . Allies Hacked . | . . . Hacks Repelled . | . . . Allies | -11 -10 -9 -------- Run | Yrd Mat Mat Total Allies . | . . . Largest Group . | . . . Highest-Rated Group . | . . . Highest-Rated Ally . | . . . Total Orders . | . . . Ally Attacks . | . . . Total Damage . | . . . Kills . | . . . Allies Corrupted . | . . . Allies Melted . | . . . Intel | -11 -10 -9 ------- Run | Yrd Mat Mat Robot Analysis Total . | . . . Derelict Logs Recovered . | . . . Drone Launches . | . . . Drone Recoveries . | . . . Exploration | -11 -10 -9 ------------- Run | Yrd Mat Mat Turns Passed 857 | 71 705 81 Spaces Moved 391 | 65 293 33 Core 7 | 7 . . Treads 249 | . 216 33 Legs . | . . . Wheels 135 | 58 77 . Hover . | . . . Flight . | . . . Fastest Speed 50 | 50 90 160 Average Speed 174 | 85 195 160 Slowest Speed 480 | 90 480 160 Overloaded Moves . | . . . Propulsion Burnouts . | . . . Robots Hopped . | . . . Cave-ins Triggered . | . . . Exploration Rate (%) 22 | 4 51 12 Regions Visited 2 Branch Regions . Pre-discovered Areas . | . . . Known Exits Taken . | . . . Unknown Exits Taken 2 | 1 1 . Scrap Searched . | . . . Spaces Dug . | . . . Terrain Destroyed 55 | . 47 8 Melee . | . . . Projectile . | . . . AOE 55 | . 47 8 Terrain Rammed . | . . . Walls Destroyed . | . . . Machines Disabled . | . . . Actions | -11 -10 -9 --------- Run | Yrd Mat Mat Total 475 | 77 354 44 Wait 6 | . 4 2 Move 389 | 64 292 33 Hop . | . . . Pick Up 9 | 6 3 . Fast Attach 13 | 6 6 1 Attach 7 | . 7 . Detach 1 | . 1 . Swap 6 | 1 5 . Drop . | . . . Fire 43 | . 35 8 Melee . | . . . Ram . | . . . Kick . | . . . Crush 1 | . 1 . Escape Stasis . | . . . Rewire . | . . . Trap . | . . . Miscellaneous . | . . . Route ------- -11/Scrapyard -10/Materials -9/Materials History --------- Turn | Location | Event 23 | -11/Scrapyard | Discovered new exit (range 15) 72 | -11/Scrapyard | Entered Materials 250 | -10/Materials | Lost 5 parts (1p2n2w) 277 | -10/Materials | Destroyed 7 combat bots 334 | -10/Materials | Build established: Mutant 627 | -10/Materials | Discovered new exit (range 16) 777 | -10/Materials | Entered another Materials area 777 | -9/Materials | Evolved 2 slots: Weapon x2 858 | -9/Materials | Self-destructed Last Messages --------------- 00820_ U-05 Engineer lays Concrete. 00820_ R-06 Scavenger collects Structural Scanner. 00821_ U-05 Engineer lays Concrete. 00824_ R-06 Scavenger collects Wheel. 00826_ U-05 Engineer lays Concrete. 00827_ R-06 Scavenger collects Lgt. Ion Engine. 00828_ U-05 Engineer lays Concrete. 00831_ R-06 Scavenger collects Corrupted Heat Sink. 00831_ U-05 Engineer lays Concrete. 00831_ U-05 Engineer destroyed. 00832_ U-05 Engineer lays Concrete. 00832_ R-06 Scavenger collects Corrupted Beam Rifle. 00834_ U-05 Engineer lays Concrete. 00848_ R-06 Scavenger collects Structural Scanner. 00848_ U-05 Engineer lays Concrete. 00854_ Grenade Launcher destroyed. Map ----- +----------------------------------------------------+ | ???????????????????? ??" "??? ""?????????????? | | ??????????????????# ?? ?? ?????????????? | | ??????????????????# ?? ?? ??? ?????????? | | ????????? ????????# """ """ ""?? "?????????? | | ???????+ ????????# """ """ """ ""????????? | | ???????# ???????# """ """ """ """ ??????? | | ???????# ???????# ??????? | | ???????# ???????# ?????? | | ???????# ##+????# #?????? | | ???????# #???# #?????? | | ???????# #???# ????? | | ???????# #???# ????? | | ???????# #???# [% % % ????? | | ???????# #???# [= +####????????? | | ???????? ##### [ [#????????? | | ???????????# % "" #????????? | | ???????????# "" #???????? | | ???????????# g "T #????????? | | ???????????# ! "" #????????? | | ???????????### # "" #????????? | | ?????????????# # ?????????? | | ?????????????# """ #?+####????????? | | ?????????????# """"" #??????????????? | | ?????????????# """"" #??????????????? | | ?????????????# ! """"" ?????????????? | | ??????????#! l@ """ ????????????? | | ?????????#! t g ???????????? | | ?????????#! g ?????????? | | ?????????#! "T" r ?????????? | | ?????????#! ###/##############+####### ?????????? | | ?????????##! ??# ????????????????????????????????? | | ????????????#????????????????????????????????????? | | ?????????????????????????????????????????????????? | | ?????????????????????????????????????????????????? | | ?????????????????????????????????????????????????? | | ?????????????????????????????????????????????????? | | ?????????????????????????????????????????????????? | | ?????????????????????????????????????????????????? | | ?????????????????????????????????????????????????? | | ?????????????????????????????????????????????????? | | ?????????????????????????????????????????????????? | | ?????????????????????????????????????????????????? | | ?????????????????????????????????????????????????? | | ?????????????????????????????????????????????????? | | ?????????????????????????????????????????????????? | | ?????????????????????????????????????????????????? | | ?????????????????????????????????????????????????? | | ?????????????????????????????????????????????????? | | ?????????????????????????????????????????????????? | | ?????????????????????????????????????????????????? | +----------------------------------------------------+ Best States ------------- Heat Dissipation 28 Energy Generation 10 Energy Capacity 250 Matter Stores 300 Matter Capacity 300 Sight Range 16 Terrain Scan Density 10 Power Shielding 33 Evasion (%) 44 Recoil Reduction 2 Item Schematics ----------------- None Robot Schematics ------------------ None Fabricated ------------ Nothing Alien Tech Used ----------------- None Achievements -------------- None Challenges ------------ None Game ------ Seed BombBladeArticulator Manual? 0 Play Time 00:05:59 Cumulative 11.4 hours Start 2024.08.10 @ 04:36:52 End 2024.08.10 @ 15:39:41 Sessions 3 Manual Loads 0 Difficulty Rogue Special Mode None Game No. 46 Rogue 44 Adventurer 0 Explorer 2 Win Type - Total 0 Types 0/0/0/0/0/0/0/0/0 Lore% 3 Gallery% 20 Achievement% 12 Wizard Run 0 Options --------- Layout 1 ASCII 0 Keyboard 0 Movement Numpad Keybinds 0 Fullscreen 1 Font 32/SmallcapsGlow Map View 50x35 Zoom Use 0% Tactical HUD 1 Map Filters NONE Filters NONE Steam 1 RUN: 5e166d83-f0fa-483e-ac56-f4225c6af664